[Event "*** Titled Tuesday Blitz"]
[Site "Chess.com"]
[Date "2020.05.19"]
[Round "3"]
[White "GianmarcoVaR"]
[Black "chenxiaoyuer"]
[Result "0-1"]
[WhiteElo "2498"]
[BlackElo "2296"]
[TimeControl "180+1"]
[EndTime "12:29:14 PDT"]
[Termination "chenxiaoyuer won on time"]

1. d4 {[%clk 0:02:53.6]} 1... Nf6 {[%clk 0:02:59.7]} 2. c4 {[%clk 0:02:53.6]}
2... g6 {[%clk 0:02:59.7]} 3. Nf3 {[%clk 0:02:54]} 3... Bg7 {[%clk 0:02:59.7]}
4. g3 {[%clk 0:02:54.7]} 4... O-O {[%clk 0:02:59.7]} 5. Bg2 {[%clk 0:02:55.3]}
5... d6 {[%clk 0:02:59.7]} 6. O-O {[%clk 0:02:55.9]} 6... Nc6 {[%clk 0:02:59.9]}
7. Nc3 {[%clk 0:02:56.6]} 7... Bg4 {[%clk 0:02:59.9]} 8. d5 {[%clk 0:02:56.7]}
8... Na5 {[%clk 0:02:59.8]} 9. Nd2 {[%clk 0:02:45.5]} 9... c5 {[%clk 0:02:58.8]}
10. Qc2 {[%clk 0:02:44.8]} 10... a6 {[%clk 0:02:56.4]} 11. h3 {[%clk 0:02:45]}
11... Bd7 {[%clk 0:02:55.6]} 12. b3 {[%clk 0:02:45.6]} 12... b5 {[%clk
0:02:55.6]} 13. Bb2 {[%clk 0:02:46.2]} 13... Rb8 {[%clk 0:02:55.7]} 14. Rab1
{[%clk 0:02:42.7]} 14... e5 {[%clk 0:02:54.3]} 15. dxe6 {[%clk 0:02:39.5]} 15...
Bxe6 {[%clk 0:02:53.2]} 16. Nd5 {[%clk 0:02:40]} 16... Nxd5 {[%clk 0:02:48.4]}
17. cxd5 {[%clk 0:02:38.4]} 17... Bf5 {[%clk 0:02:48.1]} 18. e4 {[%clk
0:02:37.7]} 18... Bd7 {[%clk 0:02:45.9]} 19. Bxg7 {[%clk 0:02:30.6]} 19... Kxg7
{[%clk 0:02:45.3]} 20. b4 {[%clk 0:02:31.5]} 20... cxb4 {[%clk 0:02:40]} 21.
Qb2+ {[%clk 0:02:30.8]} 21... Qf6 {[%clk 0:02:35.2]} 22. Qxb4 {[%clk 0:02:31.2]}
22... Nb7 {[%clk 0:02:34.3]} 23. Rfc1 {[%clk 0:02:28.9]} 23... Nc5 {[%clk
0:02:31.9]} 24. Qc3 {[%clk 0:01:59.2]} 24... Rfc8 {[%clk 0:02:15]} 25. f4 {[%clk
0:01:40.7]} 25... Qxc3 {[%clk 0:02:06.2]} 26. Rxc3 {[%clk 0:01:40.6]} 26... Na4
{[%clk 0:02:00]} 27. Rxc8 {[%clk 0:01:38.4]} 27... Rxc8 {[%clk 0:01:58.4]} 28.
Nb3 {[%clk 0:01:38.3]} 28... Rc2 {[%clk 0:01:54.9]} 29. Ra1 {[%clk 0:01:38.1]}
29... Nc3 {[%clk 0:01:30]} 30. a3 {[%clk 0:01:37]} 30... Rb2 {[%clk 0:01:26.2]}
31. Na5 {[%clk 0:01:29.8]} 31... Bc8 {[%clk 0:00:39.5]} 32. h4 {[%clk
0:01:10.6]} 32... Rb1+ {[%clk 0:00:37.3]} 33. Rxb1 {[%clk 0:01:03.1]} 33... Nxb1
{[%clk 0:00:38.2]} 34. e5 {[%clk 0:00:58.2]} 34... Nxa3 {[%clk 0:00:36.7]} 35.
exd6 {[%clk 0:00:55.7]} 35... Kf8 {[%clk 0:00:36.3]} 36. Nc6 {[%clk 0:00:51.2]}
36... Ke8 {[%clk 0:00:34.1]} 37. Bf1 {[%clk 0:00:44.5]} 37... Kd7 {[%clk
0:00:30]} 38. Bh3+ {[%clk 0:00:40.3]} 38... f5 {[%clk 0:00:28.9]} 39. h5 {[%clk
0:00:34.6]} 39... Kxd6 {[%clk 0:00:26.4]} 40. h6 {[%clk 0:00:35.5]} 40... Nc4
{[%clk 0:00:22.7]} 41. Nd8 {[%clk 0:00:21.4]} 41... Kxd5 {[%clk 0:00:20.6]} 42.
Nf7 {[%clk 0:00:20.5]} 42... b4 {[%clk 0:00:19.3]} 43. Bg2+ {[%clk 0:00:18.7]}
43... Kd4 {[%clk 0:00:18.6]} 44. Bf3 {[%clk 0:00:02.9]} 44... b3 {[%clk
0:00:18.3]} 45. Bd1 {[%clk 0:00:03]} 45... b2 {[%clk 0:00:18.6]} 46. Bc2 {[%clk
0:00:03.5]} 46... Na3 {[%clk 0:00:18]} 47. Bb1 {[%clk 0:00:01.3]} 47... Nxb1
{[%clk 0:00:17.9]} 48. Ng5 {[%clk 0:00:01.9]} 48... Nc3 {[%clk 0:00:18.2]} 49.
Nxh7 {[%clk 0:00:02.4]} 49... b1=Q+ {[%clk 0:00:18.5]} 50. Kh2 {[%clk 0:00:03]}
50... Bb7 {[%clk 0:00:18.6]} 0-1

[Event "*** Titled Tuesday Blitz"]
[Site "Chess.com"]
[Date "2020.05.19"]
[Round "3"]
[White "CroissantNeuf"]
[Black "Ashedu66"]
[Result "0-1"]
[WhiteElo "2356"]
[BlackElo "2144"]
[TimeControl "180+1"]
[EndTime "12:29:16 PDT"]
[Termination "Ashedu66 won by resignation"]

1. Nf3 {[%clk 0:03:00.9]} 1... d5 {[%clk 0:02:59.3]} 2. g3 {[%clk 0:03:00.4]}
2... Nf6 {[%clk 0:02:59.2]} 3. Bg2 {[%clk 0:03:00.4]} 3... e6 {[%clk 0:02:59.4]}
4. d4 {[%clk 0:02:58.4]} 4... Be7 {[%clk 0:02:58.3]} 5. c4 {[%clk 0:02:58.3]}
5... O-O {[%clk 0:02:57.1]} 6. Nc3 {[%clk 0:02:57.3]} 6... c6 {[%clk 0:02:54.7]}
7. O-O {[%clk 0:02:54.5]} 7... Nbd7 {[%clk 0:02:54.3]} 8. b3 {[%clk 0:02:52.8]}
8... b6 {[%clk 0:02:47.6]} 9. Bb2 {[%clk 0:02:51.9]} 9... Ba6 {[%clk 0:02:47.1]}
10. Nd2 {[%clk 0:02:45.4]} 10... b5 {[%clk 0:02:12.6]} 11. e4 {[%clk 0:02:35.7]}
11... bxc4 {[%clk 0:02:05.3]} 12. bxc4 {[%clk 0:02:32.8]} 12... Rb8 {[%clk
0:02:01.3]} 13. Rb1 {[%clk 0:02:32.6]} 13... dxc4 {[%clk 0:01:54.2]} 14. Qc2
{[%clk 0:02:14.1]} 14... Qa5 {[%clk 0:01:47.5]} 15. e5 {[%clk 0:01:53.6]} 15...
Nd5 {[%clk 0:01:43.4]} 16. Nce4 {[%clk 0:01:53.7]} 16... c3 {[%clk 0:01:18.6]}
17. Bxc3 {[%clk 0:01:35]} 17... Nxc3 {[%clk 0:01:13.3]} 18. Nxc3 {[%clk
0:01:35.2]} 18... Bxf1 {[%clk 0:01:09.5]} 19. Rxf1 {[%clk 0:01:33.9]} 19... Nb6
{[%clk 0:00:55.4]} 20. Nce4 {[%clk 0:01:21.4]} 20... Nd5 {[%clk 0:00:49.6]} 21.
h4 {[%clk 0:00:48.2]} 21... Rfc8 {[%clk 0:00:36.8]} 22. Nf3 {[%clk 0:00:33.1]}
22... h6 {[%clk 0:00:35]} 23. Nd6 {[%clk 0:00:21.6]} 23... Bxd6 {[%clk 0:00:31]}
24. exd6 {[%clk 0:00:22.5]} 24... Qd8 {[%clk 0:00:30.5]} 25. Ne5 {[%clk
0:00:18.3]} 25... Qxd6 {[%clk 0:00:28.6]} 26. Be4 {[%clk 0:00:18.9]} 26... Nf6
{[%clk 0:00:25]} 27. Bf3 {[%clk 0:00:12.4]} 27... c5 {[%clk 0:00:21.7]} 28. Qe2
{[%clk 0:00:04.7]} 28... cxd4 {[%clk 0:00:18.6]} 29. Rd1 {[%clk 0:00:05.3]}
29... a5 {[%clk 0:00:10.6]} 30. Nd3 {[%clk 0:00:05.2]} 30... Rc3 {[%clk
0:00:07.5]} 31. Ne5 {[%clk 0:00:04.9]} 31... Rbc8 {[%clk 0:00:07.1]} 32. Kg2
{[%clk 0:00:04.2]} 32... Rc2 {[%clk 0:00:05.3]} 33. Qd3 {[%clk 0:00:03]} 33...
Rxa2 {[%clk 0:00:03.6]} 34. Rf1 {[%clk 0:00:02.6]} 34... Rcc2 {[%clk 0:00:03.4]}
35. Be4 {[%clk 0:00:01.8]} 35... Qxe5 {[%clk 0:00:03.4]} 36. Bg6 {[%clk
0:00:01.9]} 36... Qd5+ {[%clk 0:00:03.5]} 37. Be4 {[%clk 0:00:01.2]} 37... Qxe4+
{[%clk 0:00:03.1]} 38. Qf3 {[%clk 0:00:02.1]} 38... Qxf3+ {[%clk 0:00:02.6]} 39.
Kxf3 {[%clk 0:00:03]} 39... Rc3+ {[%clk 0:00:02.9]} 40. Kf4 {[%clk 0:00:02.9]}
40... d3 {[%clk 0:00:03.1]} 41. Ke5 {[%clk 0:00:03.8]} 41... d2 {[%clk
0:00:03.2]} 42. Kd6 {[%clk 0:00:04.7]} 42... Ra4 {[%clk 0:00:03.3]} 43. Rd1
{[%clk 0:00:05.6]} 43... Rd4+ {[%clk 0:00:03.2]} 44. Ke7 {[%clk 0:00:06.4]}
44... Rc1 {[%clk 0:00:03.4]} 0-1

[Event "*** Titled Tuesday Blitz"]
[Site "Chess.com"]
[Date "2020.05.19"]
[Round "3"]
[White "CzechmVIII"]
[Black "Sanyura"]
[Result "0-1"]
[WhiteElo "2208"]
[BlackElo "2496"]
[TimeControl "180+1"]
[EndTime "12:29:17 PDT"]
[Termination "Sanyura won by checkmate"]

1. e4 {[%clk 0:03:00.9]} 1... c5 {[%clk 0:02:59.2]} 2. Nf3 {[%clk 0:03:00.7]}
2... e6 {[%clk 0:02:58.2]} 3. Nc3 {[%clk 0:03:00.4]} 3... Nc6 {[%clk 0:02:57.8]}
4. d4 {[%clk 0:03:00]} 4... cxd4 {[%clk 0:02:58.7]} 5. Nxd4 {[%clk 0:03:00.2]}
5... Nf6 {[%clk 0:02:58.8]} 6. Nxc6 {[%clk 0:02:59.2]} 6... bxc6 {[%clk
0:02:58.1]} 7. e5 {[%clk 0:02:59.5]} 7... Nd5 {[%clk 0:02:58.4]} 8. Ne4 {[%clk
0:02:59.7]} 8... Qc7 {[%clk 0:02:58.7]} 9. f4 {[%clk 0:02:59.8]} 9... Qb6 {[%clk
0:02:59]} 10. c4 {[%clk 0:02:58.6]} 10... Bb4+ {[%clk 0:02:59]} 11. Ke2 {[%clk
0:02:58.6]} 11... f5 {[%clk 0:02:59.3]} 12. exf6 {[%clk 0:02:53.2]} 12... Nxf6
{[%clk 0:02:59.2]} 13. Be3 {[%clk 0:02:52.1]} 13... Qd8 {[%clk 0:02:25.2]} 14.
Nxf6+ {[%clk 0:02:37.2]} 14... Qxf6 {[%clk 0:02:23.1]} 15. Qd4 {[%clk
0:02:25.3]} 15... Qg6 {[%clk 0:01:36.3]} 16. Kf2 {[%clk 0:02:00.5]} 16... O-O
{[%clk 0:01:31.5]} 17. Bd3 {[%clk 0:01:54.2]} 17... e5 {[%clk 0:01:23.7]} 18.
Qe4 {[%clk 0:01:08.5]} 18... exf4 {[%clk 0:01:21.2]} 19. Bd4 {[%clk 0:01:02.3]}
19... Qh6 {[%clk 0:00:47.2]} 20. Rhd1 {[%clk 0:00:38.4]} 20... d6 {[%clk
0:00:41.7]} 21. Kg1 {[%clk 0:00:29.8]} 21... Bf5 {[%clk 0:00:38.7]} 22. Qe2
{[%clk 0:00:28.4]} 22... Rae8 {[%clk 0:00:34.9]} 23. Qf3 {[%clk 0:00:27.5]}
23... Bd7 {[%clk 0:00:29.4]} 24. Bxa7 {[%clk 0:00:20]} 24... Re3 {[%clk
0:00:24.6]} 25. Bxe3 {[%clk 0:00:17.9]} 25... fxe3 {[%clk 0:00:25.5]} 26. Qe2
{[%clk 0:00:15.9]} 26... d5 {[%clk 0:00:25.5]} 27. Rf1 {[%clk 0:00:15.3]} 27...
Bd6 {[%clk 0:00:19]} 28. Rxf8+ {[%clk 0:00:14]} 28... Kxf8 {[%clk 0:00:19.9]}
29. g3 {[%clk 0:00:11.7]} 29... Bc5 {[%clk 0:00:16.1]} 30. Rf1+ {[%clk
0:00:11.3]} 30... Ke7 {[%clk 0:00:15.9]} 31. Qg2 {[%clk 0:00:08.4]} 31... e2+
{[%clk 0:00:15.3]} 32. Kh1 {[%clk 0:00:06.5]} 32... exf1=Q+ {[%clk 0:00:15.2]}
33. Bxf1 {[%clk 0:00:06.4]} 33... Qe3 {[%clk 0:00:15.2]} 34. Qe2 {[%clk
0:00:05.9]} 34... Bf5 {[%clk 0:00:13.6]} 35. Qxe3+ {[%clk 0:00:05.3]} 35... Bxe3
{[%clk 0:00:14.5]} 36. cxd5 {[%clk 0:00:05.8]} 36... Be4+ {[%clk 0:00:12.1]} 37.
Bg2 {[%clk 0:00:05.7]} 37... Bxg2+ {[%clk 0:00:12.7]} 38. Kxg2 {[%clk
0:00:06.5]} 38... cxd5 {[%clk 0:00:13.5]} 39. b4 {[%clk 0:00:06.4]} 39... Bd2
{[%clk 0:00:13.4]} 40. b5 {[%clk 0:00:05.9]} 40... Ba5 {[%clk 0:00:13.7]} 41.
Kf3 {[%clk 0:00:06.2]} 41... Ke6 {[%clk 0:00:14]} 42. Kf4 {[%clk 0:00:06.5]}
42... Bc7+ {[%clk 0:00:12.4]} 43. Kg4 {[%clk 0:00:06.1]} 43... Ke5 {[%clk
0:00:12.9]} 44. a4 {[%clk 0:00:06.5]} 44... Ke4 {[%clk 0:00:12.9]} 45. h4 {[%clk
0:00:06.1]} 45... d4 {[%clk 0:00:13.2]} 46. Kg5 {[%clk 0:00:06]} 46... d3 {[%clk
0:00:13.5]} 47. h5 {[%clk 0:00:06.9]} 47... d2 {[%clk 0:00:13.7]} 48. h6 {[%clk
0:00:07.8]} 48... gxh6+ {[%clk 0:00:11.5]} 49. Kxh6 {[%clk 0:00:07.9]} 49...
d1=Q {[%clk 0:00:11.9]} 50. Kxh7 {[%clk 0:00:08.4]} 50... Qg4 {[%clk 0:00:12.1]}
51. b6 {[%clk 0:00:07.7]} 51... Be5 {[%clk 0:00:11.7]} 52. b7 {[%clk 0:00:07.4]}
52... Qg7# {[%clk 0:00:11.6]} 0-1

[Event "*** Titled Tuesday Blitz"]
[Site "Chess.com"]
[Date "2020.05.19"]
[Round "3"]
[White "doctorcristian"]
[Black "AndrewMaco"]
[Result "0-1"]
[WhiteElo "2362"]
[BlackElo "2558"]
[TimeControl "180+1"]
[EndTime "12:29:20 PDT"]
[Termination "AndrewMaco won on time"]

1. d4 {[%clk 0:03:00.9]} 1... Nf6 {[%clk 0:03:00.1]} 2. Nc3 {[%clk 0:02:57.7]}
2... d5 {[%clk 0:02:57.4]} 3. Bf4 {[%clk 0:02:56.9]} 3... e6 {[%clk 0:02:54.2]}
4. Nb5 {[%clk 0:02:55.6]} 4... Na6 {[%clk 0:02:54.1]} 5. e3 {[%clk 0:02:54.9]}
5... Be7 {[%clk 0:02:52.3]} 6. Nf3 {[%clk 0:02:53.9]} 6... Nh5 {[%clk
0:02:52.2]} 7. Be5 {[%clk 0:02:52.2]} 7... f6 {[%clk 0:02:52.1]} 8. Nd2 {[%clk
0:02:51.2]} 8... g6 {[%clk 0:02:51.5]} 9. Bg3 {[%clk 0:02:48.2]} 9... c6 {[%clk
0:02:49.7]} 10. Nc3 {[%clk 0:02:47]} 10... O-O {[%clk 0:02:42.7]} 11. Bxa6
{[%clk 0:02:42.2]} 11... bxa6 {[%clk 0:02:40.3]} 12. O-O {[%clk 0:02:40.6]}
12... Nxg3 {[%clk 0:02:38.8]} 13. hxg3 {[%clk 0:02:39.7]} 13... c5 {[%clk
0:02:37.8]} 14. Na4 {[%clk 0:02:37.1]} 14... cxd4 {[%clk 0:02:26.1]} 15. exd4
{[%clk 0:02:36.2]} 15... e5 {[%clk 0:02:27]} 16. Nb3 {[%clk 0:02:33]} 16... e4
{[%clk 0:02:24.7]} 17. Nac5 {[%clk 0:02:23.9]} 17... f5 {[%clk 0:02:24]} 18. Qe2
{[%clk 0:02:20]} 18... Qd6 {[%clk 0:02:05.7]} 19. c4 {[%clk 0:02:13.8]} 19...
Bf6 {[%clk 0:01:58.8]} 20. Rfd1 {[%clk 0:02:12]} 20... Rb8 {[%clk 0:01:53.3]}
21. Rac1 {[%clk 0:02:08.5]} 21... Rd8 {[%clk 0:01:50]} 22. Rc2 {[%clk
0:01:52.7]} 22... Kg7 {[%clk 0:01:30.9]} 23. Rdc1 {[%clk 0:01:40.5]} 23... Re8
{[%clk 0:01:26.3]} 24. Qe3 {[%clk 0:01:27]} 24... g5 {[%clk 0:01:25.1]} 25. cxd5
{[%clk 0:01:01.1]} 25... Qxd5 {[%clk 0:01:23.9]} 26. Rc4 {[%clk 0:00:38]} 26...
Rb6 {[%clk 0:01:03.5]} 27. Nd3 {[%clk 0:00:32.7]} 27... Bd7 {[%clk 0:01:00.3]}
28. Rc5 {[%clk 0:00:23.1]} 28... Qd6 {[%clk 0:00:42]} 29. Ne5 {[%clk 0:00:22.1]}
29... Be6 {[%clk 0:00:36.7]} 30. Rc7+ {[%clk 0:00:21.2]} 30... Re7 {[%clk
0:00:36.3]} 31. R7c6 {[%clk 0:00:20.2]} 31... Rxc6 {[%clk 0:00:33]} 32. Rxc6
{[%clk 0:00:20.1]} 32... Qd5 {[%clk 0:00:32.2]} 33. Rxa6 {[%clk 0:00:14.4]}
33... h6 {[%clk 0:00:31.5]} 34. Nc5 {[%clk 0:00:12.6]} 34... Bc8 {[%clk
0:00:23]} 35. b3 {[%clk 0:00:08]} 35... Bxa6 {[%clk 0:00:22.3]} 36. Nxa6 {[%clk
0:00:07.6]} 36... Bxe5 {[%clk 0:00:22]} 37. dxe5 {[%clk 0:00:07.3]} 37... Qxe5
{[%clk 0:00:19.1]} 38. Kh2 {[%clk 0:00:05.6]} 38... f4 {[%clk 0:00:19]} 39. Qe2
{[%clk 0:00:03.2]} 39... e3 {[%clk 0:00:17.8]} 40. fxe3 {[%clk 0:00:01]} 40...
fxg3+ {[%clk 0:00:17]} 0-1

[Event "*** Titled Tuesday Blitz"]
[Site "Chess.com"]
[Date "2020.05.19"]
[Round "3"]
[White "GMCarbone"]
[Black "Vuk2000"]
[Result "1/2-1/2"]
[WhiteElo "2325"]
[BlackElo "2611"]
[TimeControl "180+1"]
[EndTime "12:29:21 PDT"]
[Termination "Game drawn by repetition"]

1. d4 {[%clk 0:03:00.9]} 1... e6 {[%clk 0:03:00.9]} 2. c4 {[%clk 0:03:00.7]}
2... Nf6 {[%clk 0:03:01.3]} 3. g3 {[%clk 0:03:00.1]} 3... d5 {[%clk 0:03:00.8]}
4. Nf3 {[%clk 0:03:00]} 4... Be7 {[%clk 0:03:00.5]} 5. Bg2 {[%clk 0:03:00.1]}
5... O-O {[%clk 0:03:00.8]} 6. Nc3 {[%clk 0:02:59.3]} 6... dxc4 {[%clk
0:03:00.3]} 7. Ne5 {[%clk 0:02:59.9]} 7... Nc6 {[%clk 0:03:00.2]} 8. Bxc6 {[%clk
0:02:59.8]} 8... bxc6 {[%clk 0:03:00.3]} 9. Nxc6 {[%clk 0:03:00.7]} 9... Qe8
{[%clk 0:03:00.5]} 10. Nxe7+ {[%clk 0:03:00.1]} 10... Qxe7 {[%clk 0:03:01.4]}
11. Qa4 {[%clk 0:03:00.3]} 11... c5 {[%clk 0:02:56.3]} 12. dxc5 {[%clk
0:03:00.3]} 12... Qxc5 {[%clk 0:02:53.9]} 13. Be3 {[%clk 0:03:00.7]} 13... Qc7
{[%clk 0:02:50.2]} 14. O-O-O {[%clk 0:03:00]} 14... Bb7 {[%clk 0:02:45.5]} 15.
f3 {[%clk 0:02:56.1]} 15... Nd5 {[%clk 0:02:43.6]} 16. Bd4 {[%clk 0:02:55.1]}
16... Rfd8 {[%clk 0:02:35.6]} 17. e4 {[%clk 0:02:53.8]} 17... Nb6 {[%clk
0:02:21.5]} 18. Qa5 {[%clk 0:02:48.7]} 18... Nd5 {[%clk 0:02:07.9]} 19. Qxc7
{[%clk 0:02:45.3]} 19... Nxc7 {[%clk 0:02:08.8]} 20. Rd2 {[%clk 0:02:41]} 20...
f5 {[%clk 0:01:57.5]} 21. Rhd1 {[%clk 0:02:27.9]} 21... fxe4 {[%clk 0:01:56.3]}
22. Nxe4 {[%clk 0:02:27.3]} 22... Bxe4 {[%clk 0:01:52.6]} 23. fxe4 {[%clk
0:02:28.2]} 23... Nb5 {[%clk 0:01:52.8]} 24. Be5 {[%clk 0:02:27.1]} 24... Rxd2
{[%clk 0:01:48.8]} 25. Rxd2 {[%clk 0:02:28]} 25... Rf8 {[%clk 0:01:48.5]} 26.
Rd7 {[%clk 0:02:25]} 26... Rf1+ {[%clk 0:01:35.9]} 27. Kd2 {[%clk 0:02:21.2]}
27... Rf2+ {[%clk 0:01:26.1]} 28. Ke3 {[%clk 0:02:14.7]} 28... Rxh2 {[%clk
0:01:25.7]} 29. a4 {[%clk 0:02:09.1]} 29... c3 {[%clk 0:01:25.5]} 30. bxc3
{[%clk 0:01:50.7]} 30... Na3 {[%clk 0:01:23.6]} 31. Rxg7+ {[%clk 0:01:38.6]}
31... Kf8 {[%clk 0:01:23]} 32. Rxa7 {[%clk 0:01:38.9]} 32... Nc4+ {[%clk
0:01:17.1]} 33. Kd4 {[%clk 0:01:37.7]} 33... Nd2 {[%clk 0:01:16.7]} 34. Bd6+
{[%clk 0:01:33.9]} 34... Ke8 {[%clk 0:01:16]} 35. Ke5 {[%clk 0:01:31.1]} 35...
Nc4+ {[%clk 0:01:13.9]} 36. Kxe6 {[%clk 0:01:19.8]} 36... Rh6+ {[%clk
0:01:13.7]} 37. Kd5 {[%clk 0:01:19.1]} 37... Nxd6 {[%clk 0:01:13.6]} 38. Ra8+
{[%clk 0:01:12.2]} 38... Kd7 {[%clk 0:01:03.7]} 39. Ra7+ {[%clk 0:01:12]} 39...
Kd8 {[%clk 0:01:01.3]} 40. e5 {[%clk 0:00:55.3]} 40... Nf5 {[%clk 0:00:51.3]}
41. Ra8+ {[%clk 0:00:52.9]} 41... Kc7 {[%clk 0:00:50.9]} 42. Ra7+ {[%clk
0:00:48]} 42... Kb6 {[%clk 0:00:45.9]} 43. Rf7 {[%clk 0:00:47.7]} 43... Ne3+
{[%clk 0:00:45.1]} 44. Ke4 {[%clk 0:00:46.8]} 44... Nc4 {[%clk 0:00:44.8]} 45.
Rf6+ {[%clk 0:00:43.8]} 45... Rxf6 {[%clk 0:00:41.8]} 46. exf6 {[%clk
0:00:44.7]} 46... Kc6 {[%clk 0:00:39.2]} 47. Kf5 {[%clk 0:00:40.4]} 47... Kd6
{[%clk 0:00:31]} 48. g4 {[%clk 0:00:33.5]} 48... Kd7 {[%clk 0:00:11.1]} 49. g5
{[%clk 0:00:24.3]} 49... Nd6+ {[%clk 0:00:09.8]} 50. Ke5 {[%clk 0:00:19.6]}
50... Nf7+ {[%clk 0:00:08.6]} 51. Kf5 {[%clk 0:00:19.8]} 51... Nd6+ {[%clk
0:00:08.3]} 52. Ke5 {[%clk 0:00:19.3]} 52... Nf7+ {[%clk 0:00:08.2]} 53. Kf5
{[%clk 0:00:19.4]} 53... Nd6+ {[%clk 0:00:07.9]} 1/2-1/2

[Event "*** Titled Tuesday Blitz"]
[Site "Chess.com"]
[Date "2020.05.19"]
[Round "3"]
[White "Emolas-2020"]
[Black "zajka-molotok"]
[Result "1-0"]
[WhiteElo "2300"]
[BlackElo "2326"]
[TimeControl "180+1"]
[EndTime "12:29:21 PDT"]
[Termination "Emolas-2020 won by resignation"]

1. e4 {[%clk 0:03:00.9]} 1... e5 {[%clk 0:02:58.6]} 2. Nf3 {[%clk 0:03:00.9]}
2... Nc6 {[%clk 0:02:58.9]} 3. Bc4 {[%clk 0:03:00.6]} 3... Bc5 {[%clk
0:02:56.7]} 4. O-O {[%clk 0:02:58.8]} 4... Nf6 {[%clk 0:02:56.2]} 5. d3 {[%clk
0:02:56.8]} 5... O-O {[%clk 0:02:55.6]} 6. h3 {[%clk 0:02:55.3]} 6... h6 {[%clk
0:02:50.4]} 7. c3 {[%clk 0:02:55.3]} 7... Bb6 {[%clk 0:02:40.4]} 8. Re1 {[%clk
0:02:53.1]} 8... d6 {[%clk 0:02:39.8]} 9. Nbd2 {[%clk 0:02:50.7]} 9... a6 {[%clk
0:02:32.4]} 10. Nf1 {[%clk 0:02:49.2]} 10... Na5 {[%clk 0:02:28.5]} 11. Ng3
{[%clk 0:02:42.5]} 11... Nxc4 {[%clk 0:02:27.8]} 12. dxc4 {[%clk 0:02:41.1]}
12... Be6 {[%clk 0:02:25.3]} 13. b3 {[%clk 0:02:39.7]} 13... Qd7 {[%clk
0:02:24.2]} 14. Qd3 {[%clk 0:02:34.4]} 14... Kh8 {[%clk 0:02:12.7]} 15. Be3
{[%clk 0:02:34.1]} 15... Bxe3 {[%clk 0:02:10.7]} 16. Qxe3 {[%clk 0:02:34.9]}
16... Ng8 {[%clk 0:02:07.6]} 17. Rad1 {[%clk 0:02:33.5]} 17... b6 {[%clk
0:01:58.9]} 18. Nxe5 {[%clk 0:02:30.3]} 18... Qe8 {[%clk 0:01:55.3]} 19. Nf3
{[%clk 0:02:26]} 19... Ne7 {[%clk 0:01:51.5]} 20. Nd4 {[%clk 0:02:25.5]} 20...
Bd7 {[%clk 0:01:50.5]} 21. e5 {[%clk 0:02:22.3]} 21... d5 {[%clk 0:01:37.1]} 22.
cxd5 {[%clk 0:02:10.6]} 22... Nxd5 {[%clk 0:01:35.8]} 23. Qd2 {[%clk 0:02:09.7]}
23... Rd8 {[%clk 0:01:23.5]} 24. c4 {[%clk 0:02:04.1]} 24... Ne7 {[%clk
0:01:21.6]} 25. Qe3 {[%clk 0:01:53.8]} 25... c5 {[%clk 0:01:18]} 26. Nde2 {[%clk
0:01:35.9]} 26... Nc6 {[%clk 0:01:10.3]} 27. f4 {[%clk 0:01:34.6]} 27... f6
{[%clk 0:01:06.7]} 28. Nc3 {[%clk 0:01:14.7]} 28... fxe5 {[%clk 0:01:05.6]} 29.
fxe5 {[%clk 0:01:14.1]} 29... Nd4 {[%clk 0:01:05.7]} 30. Rd2 {[%clk 0:01:01.7]}
30... Bxh3 {[%clk 0:01:01]} 31. Nd5 {[%clk 0:00:55.1]} 31... b5 {[%clk
0:00:28.5]} 32. Ne4 {[%clk 0:00:19.8]} 32... Bf5 {[%clk 0:00:21.3]} 33. Nxc5
{[%clk 0:00:18]} 33... Ne6 {[%clk 0:00:18.6]} 34. Nxe6 {[%clk 0:00:16.8]} 34...
Qxe6 {[%clk 0:00:17.7]} 35. Nf4 {[%clk 0:00:15]} 35... Qe7 {[%clk 0:00:17.1]}
36. Rxd8 {[%clk 0:00:08.5]} 36... Rxd8 {[%clk 0:00:16.8]} 37. e6 {[%clk
0:00:08.2]} 37... Re8 {[%clk 0:00:16.9]} 38. Qe5 {[%clk 0:00:07.9]} 38... Bh7
{[%clk 0:00:16.3]} 39. Rd1 {[%clk 0:00:06]} 39... Qa7+ {[%clk 0:00:15.9]} 40. c5
{[%clk 0:00:05.6]} 40... Qe7 {[%clk 0:00:15.8]} 41. Rd7 {[%clk 0:00:04.3]} 41...
Qh4 {[%clk 0:00:14]} 42. e7 {[%clk 0:00:03.9]} 42... Qg3 {[%clk 0:00:12.3]} 43.
c6 {[%clk 0:00:03.2]} 43... h5 {[%clk 0:00:10.3]} 44. c7 {[%clk 0:00:03.4]}
44... h4 {[%clk 0:00:09.3]} 45. Rd8 {[%clk 0:00:03]} 45... Bg6 {[%clk
0:00:08.9]} 46. Rxe8+ {[%clk 0:00:02.7]} 46... Bxe8 {[%clk 0:00:09]} 47. c8=Q
{[%clk 0:00:02.6]} 1-0